[Event "Titled Tuesday Blitz June 21 Early 2022"]
[White "Horak, Martin"]
[Black "Xu, Yinglun"]
[WhiteFideId "367095"]
[BlackFideId "8604940"]
[WhiteElo "1997"]
[BlackElo "2544"]
[Result "1-0"]
[Round "02"]
[TimeControl "180+1"]
[Date "2022.06.22"]
[WhiteClock "0:00:38"]
[BlackClock "0:00:19"]

1. e4 {[%clk 0:03:00]}  c5 {[%clk 0:02:59]} 2. Nc3 {[%clk 0:02:52]}  a6 {[%clk 0:02:53]} 3. Nge2 {[%clk 0:02:50]}  d6 {[%clk 0:02:29]} 4. g3 {[%clk 0:02:43]}  Nf6 {[%clk 0:02:27]} 5. Bg2 {[%clk 0:02:42]}  g6 {[%clk 0:02:27]} 6. O-O {[%clk 0:02:41]}  Bg7 {[%clk 0:02:27]} 7. d4 {[%clk 0:02:42]}  cxd4 {[%clk 0:02:27]} 8. Nxd4 {[%clk 0:02:43]}  O-O {[%clk 0:02:27]} 9. h3 {[%clk 0:02:41]}  Bd7 {[%clk 0:02:26]} 10. Re1 {[%clk 0:02:40]}  Nc6 {[%clk 0:02:25]} 11. Be3 {[%clk 0:02:21]}  Rc8 {[%clk 0:02:21]} 12. Nd5 {[%clk 0:02:16]}  Nxd5 {[%clk 0:01:29]} 13. exd5 {[%clk 0:02:16]}  Nxd4 {[%clk 0:01:28]} 14. Bxd4 {[%clk 0:02:16]}  Bxd4 {[%clk 0:01:28]} 15. Qxd4 {[%clk 0:02:17]}  Rxc2 {[%clk 0:01:28]} 16. Rac1 {[%clk 0:02:06]}  Rxc1 {[%clk 0:01:28]} 17. Rxc1 {[%clk 0:02:07]}  Qa5 {[%clk 0:01:18]} 18. a3 {[%clk 0:02:05]}  Rc8 {[%clk 0:00:41]} 19. Rxc8+ {[%clk 0:01:35]}  Bxc8 {[%clk 0:00:41]} 20. Qe3 {[%clk 0:01:32]}  Qc7 {[%clk 0:00:40]} 21. h4 {[%clk 0:01:30]}  h5 {[%clk 0:00:40]} 22. Bf3 {[%clk 0:01:26]}  Bf5 {[%clk 0:00:37]} 23. Kg2 {[%clk 0:01:25]}  Kg7 {[%clk 0:00:35]} 24. Qd4+ {[%clk 0:01:25]}  f6 {[%clk 0:00:35]} 25. Qe3 {[%clk 0:01:25]}  b5 {[%clk 0:00:34]} 26. b4 {[%clk 0:01:24]}  Qd7 {[%clk 0:00:28]} 27. Qb6 {[%clk 0:01:20]}  Qc8 {[%clk 0:00:28]} 28. Qe3 {[%clk 0:01:19]}  e5 {[%clk 0:00:27]} 29. dxe6 {[%clk 0:01:18]}  Bxe6 {[%clk 0:00:28]} 30. Qd4 {[%clk 0:01:15]}  d5 {[%clk 0:00:26]} 31. Qe3 {[%clk 0:00:57]}  Qd7 {[%clk 0:00:23]} 32. Qd4 {[%clk 0:00:57]}  Bf7 {[%clk 0:00:23]} 33. Bd1 {[%clk 0:00:55]}  Qf5 {[%clk 0:00:22]} 34. Bf3 {[%clk 0:00:54]}  Qd7 {[%clk 0:00:21]} 35. Bd1 {[%clk 0:00:52]}  Qd6 {[%clk 0:00:22]} 36. Bf3 {[%clk 0:00:52]}  Qc6 {[%clk 0:00:22]} 37. Qe3 {[%clk 0:00:48]}  Qc7 {[%clk 0:00:21]} 38. Qd4 {[%clk 0:00:48]}  Qc4 {[%clk 0:00:21]} 39. Qb6 {[%clk 0:00:46]}  d4 {[%clk 0:00:21]} 40. Qxa6 {[%clk 0:00:45]}  Bd5 {[%clk 0:00:21]} 41. Qa7+ {[%clk 0:00:40]}  Kh6 {[%clk 0:00:21]} 42. Qe7 {[%clk 0:00:39]}  Bxf3+ {[%clk 0:00:21]} 43. Kxf3 {[%clk 0:00:40]}  Qd5+ {[%clk 0:00:21]} 44. Qe4 {[%clk 0:00:38]}  Qd6 {[%clk 0:00:19]} 45. Qf4+ {[%clk 0:00:38]} 1-0


[Site "https://www.chess.com"]

[Event "Titled Tuesday Blitz June 21 Early 2022"]
[White "Jakubowska, Anna"]
[Black "Piesik, Piotr"]
[WhiteFideId "1121952"]
[BlackFideId "1136194"]
[WhiteElo "1878"]
[BlackElo "2247"]
[Result "1-0"]
[Round "02"]
[TimeControl "180+1"]
[Date "2022.06.22"]
[WhiteClock "0:00:25"]
[BlackClock "0:00:06"]

1. e4 {[%clk 0:02:58]}  g6 {[%clk 0:02:57]} 2. d4 {[%clk 0:02:55]}  Bg7 {[%clk 0:02:56]} 3. Nc3 {[%clk 0:02:53]}  c6 {[%clk 0:02:56]} 4. Be3 {[%clk 0:02:41]}  d5 {[%clk 0:02:56]} 5. f3 {[%clk 0:02:40]}  dxe4 {[%clk 0:02:55]} 6. fxe4 {[%clk 0:02:39]}  Nf6 {[%clk 0:02:56]} 7. Qd2 {[%clk 0:02:36]}  Ng4 {[%clk 0:02:56]} 8. O-O-O {[%clk 0:02:32]}  Nxe3 {[%clk 0:02:56]} 9. Qxe3 {[%clk 0:02:31]}  h5 {[%clk 0:02:54]} 10. Kb1 {[%clk 0:02:31]}  Bg4 {[%clk 0:02:51]} 11. Be2 {[%clk 0:02:29]}  Nd7 {[%clk 0:02:46]} 12. Nf3 {[%clk 0:02:23]}  Qa5 {[%clk 0:02:42]} 13. Bc4 {[%clk 0:02:11]}  e6 {[%clk 0:02:29]} 14. Rd2 {[%clk 0:01:51]}  Bxf3 {[%clk 0:02:27]} 15. Qxf3 {[%clk 0:01:49]}  Rf8 {[%clk 0:02:18]} 16. Rhd1 {[%clk 0:01:32]}  O-O-O {[%clk 0:02:17]} 17. e5 {[%clk 0:01:29]}  Bh6 {[%clk 0:01:33]} 18. Rf2 {[%clk 0:01:25]}  Nb6 {[%clk 0:01:29]} 19. Bb3 {[%clk 0:01:24]}  Qb4 {[%clk 0:01:26]} 20. a3 {[%clk 0:01:14]}  Qe7 {[%clk 0:01:25]} 21. Ne4 {[%clk 0:01:09]}  Kb8 {[%clk 0:01:25]} 22. c3 {[%clk 0:00:57]}  Nd5 {[%clk 0:01:21]} 23. Bxd5 {[%clk 0:00:56]}  Rxd5 {[%clk 0:01:14]} 24. Rdf1 {[%clk 0:00:53]}  Rd7 {[%clk 0:01:00]} 25. Nc5 {[%clk 0:00:45]}  Rc7 {[%clk 0:00:55]} 26. Qf6 {[%clk 0:00:45]}  Bg5 {[%clk 0:00:51]} 27. Qg7 {[%clk 0:00:36]}  Kc8 {[%clk 0:00:19]} 28. Ne4 {[%clk 0:00:33]}  f5 {[%clk 0:00:13]} 29. exf6 {[%clk 0:00:27]}  Qxg7 {[%clk 0:00:06]} 30. fxg7 {[%clk 0:00:27]}  Rxf2 {[%clk 0:00:06]} 31. g8=Q+ {[%clk 0:00:25]} 1-0


[Site "https://www.chess.com"]

[Event "Titled Tuesday Blitz June 21 Early 2022"]
[White "Jakubowski, Krzysztof"]
[Black "Zhigalko, Sergei"]
[WhiteFideId "1112848"]
[BlackFideId "13502956"]
[WhiteElo "2365"]
[BlackElo "2662"]
[Result "1-0"]
[Round "02"]
[TimeControl "180+1"]
[Date "2022.06.21"]
[WhiteClock "0:00:06"]
[BlackClock "0:00:01"]

1. e4 {[%clk 0:03:00]}  c5 {[%clk 0:03:00]} 2. Nf3 {[%clk 0:03:00]}  Nc6 {[%clk 0:03:00]} 3. d4 {[%clk 0:03:00]}  cxd4 {[%clk 0:03:01]} 4. Nxd4 {[%clk 0:03:00]}  Nf6 {[%clk 0:03:02]} 5. Nc3 {[%clk 0:03:00]}  e5 {[%clk 0:03:02]} 6. Ndb5 {[%clk 0:03:00]}  d6 {[%clk 0:03:03]} 7. Bg5 {[%clk 0:02:59]}  a6 {[%clk 0:03:03]} 8. Na3 {[%clk 0:02:59]}  b5 {[%clk 0:03:03]} 9. Nd5 {[%clk 0:02:59]}  Be7 {[%clk 0:03:03]} 10. Bxf6 {[%clk 0:02:58]}  Bxf6 {[%clk 0:03:04]} 11. c3 {[%clk 0:02:58]}  Bg5 {[%clk 0:03:04]} 12. Nc2 {[%clk 0:02:56]}  Ne7 {[%clk 0:03:04]} 13. Ncb4 {[%clk 0:02:53]}  O-O {[%clk 0:03:03]} 14. a4 {[%clk 0:02:51]}  bxa4 {[%clk 0:03:02]} 15. Nxe7+ {[%clk 0:02:39]}  Qxe7 {[%clk 0:03:02]} 16. Bc4 {[%clk 0:02:38]}  a5 {[%clk 0:02:56]} 17. Qxa4 {[%clk 0:02:35]}  Bd7 {[%clk 0:02:36]} 18. Nd5 {[%clk 0:02:29]}  Qd8 {[%clk 0:02:34]} 19. Qc2 {[%clk 0:02:23]}  Kh8 {[%clk 0:02:31]} 20. O-O {[%clk 0:02:20]}  g6 {[%clk 0:02:11]} 21. Rad1 {[%clk 0:02:07]}  Bh6 {[%clk 0:01:50]} 22. b3 {[%clk 0:01:52]}  f5 {[%clk 0:01:44]} 23. exf5 {[%clk 0:01:38]}  gxf5 {[%clk 0:01:43]} 24. Kh1 {[%clk 0:01:28]}  Ra7 {[%clk 0:01:04]} 25. Qe2 {[%clk 0:01:25]}  Qh4 {[%clk 0:01:00]} 26. Nb6 {[%clk 0:01:17]}  Rf6 {[%clk 0:00:41]} 27. Nxd7 {[%clk 0:01:08]}  Rxd7 {[%clk 0:00:40]} 28. g3 {[%clk 0:00:55]}  Qh3 {[%clk 0:00:23]} 29. Bd5 {[%clk 0:00:39]}  f4 {[%clk 0:00:15]} 30. Rg1 {[%clk 0:00:29]}  Rg7 {[%clk 0:00:11]} 31. Qb5 {[%clk 0:00:27]}  Rf8 {[%clk 0:00:07]} 32. Bg2 {[%clk 0:00:23]}  Qh5 {[%clk 0:00:07]} 33. Rxd6 {[%clk 0:00:20]}  f3 {[%clk 0:00:06]} 34. Bf1 {[%clk 0:00:18]}  Bg5 {[%clk 0:00:02]} 35. Qxe5 {[%clk 0:00:14]}  Re8 {[%clk 0:00:01]} 36. Qd4 {[%clk 0:00:13]}  Rf8 {[%clk 0:00:01]} 37. Rd7 {[%clk 0:00:13]}  Bf6 {[%clk 0:00:01]} 38. Qd3 {[%clk 0:00:09]}  Rg6 {[%clk 0:00:01]} 39. Rd5 {[%clk 0:00:06]} 1-0


[Site "https://www.chess.com"]

[Event "Titled Tuesday Blitz June 21 Early 2022"]
[White "Karas, Marek"]
[Black "Pappelis, Dimitrios"]
[WhiteFideId "14928558"]
[BlackFideId "4215281"]
[WhiteElo "2271"]
[BlackElo "1998"]
[Result "1-0"]
[Round "02"]
[TimeControl "180+1"]
[Date "2022.06.22"]
[WhiteClock "0:00:22"]
[BlackClock "0:00:13"]

1. d4 {[%clk 0:03:00]}  d5 {[%clk 0:02:58]} 2. Nf3 {[%clk 0:03:01]}  Nf6 {[%clk 0:02:57]} 3. c4 {[%clk 0:03:01]}  e6 {[%clk 0:02:56]} 4. g3 {[%clk 0:03:00]}  Be7 {[%clk 0:02:46]} 5. Bg2 {[%clk 0:03:00]}  O-O {[%clk 0:02:47]} 6. O-O {[%clk 0:03:00]}  dxc4 {[%clk 0:02:47]} 7. Qc2 {[%clk 0:03:00]}  b5 {[%clk 0:02:43]} 8. a4 {[%clk 0:02:58]}  Bb7 {[%clk 0:02:41]} 9. axb5 {[%clk 0:02:57]}  a6 {[%clk 0:02:41]} 10. bxa6 {[%clk 0:02:53]}  Nxa6 {[%clk 0:02:39]} 11. Qxc4 {[%clk 0:02:51]}  Bd5 {[%clk 0:02:33]} 12. Qc3 {[%clk 0:02:43]}  c5 {[%clk 0:02:26]} 13. Na3 {[%clk 0:02:40]}  cxd4 {[%clk 0:02:13]} 14. Qxd4 {[%clk 0:02:29]}  Nc5 {[%clk 0:02:01]} 15. Qe3 {[%clk 0:01:58]}  Nb3 {[%clk 0:01:27]} 16. Rb1 {[%clk 0:01:55]}  Qa5 {[%clk 0:01:11]} 17. Bd2 {[%clk 0:01:43]}  Nxd2 {[%clk 0:01:11]} 18. Qxd2 {[%clk 0:01:41]}  Qxd2 {[%clk 0:01:09]} 19. Nxd2 {[%clk 0:01:42]}  Bxg2 {[%clk 0:01:04]} 20. Kxg2 {[%clk 0:01:43]}  Bxa3 {[%clk 0:01:04]} 21. bxa3 {[%clk 0:01:43]}  Rxa3 {[%clk 0:01:04]} 22. Ra1 {[%clk 0:01:43]}  Rfa8 {[%clk 0:01:02]} 23. Rxa3 {[%clk 0:01:43]}  Rxa3 {[%clk 0:01:02]} 24. Rb1 {[%clk 0:01:42]}  g6 {[%clk 0:00:59]} 25. Rb2 {[%clk 0:01:43]}  Kg7 {[%clk 0:00:58]} 26. h3 {[%clk 0:01:41]}  h5 {[%clk 0:00:57]} 27. e3 {[%clk 0:01:41]}  Ra1 {[%clk 0:00:54]} 28. Nf3 {[%clk 0:01:41]}  Nd5 {[%clk 0:00:47]} 29. Ne5 {[%clk 0:01:40]}  Kf6 {[%clk 0:00:44]} 30. Nc4 {[%clk 0:01:31]}  Rc1 {[%clk 0:00:42]} 31. Nd6 {[%clk 0:01:31]}  Rc6 {[%clk 0:00:36]} 32. Ne4+ {[%clk 0:01:28]}  Ke5 {[%clk 0:00:30]} 33. Nd2 {[%clk 0:01:28]}  Kf6 {[%clk 0:00:29]} 34. Kf3 {[%clk 0:01:22]}  Kg7 {[%clk 0:00:27]} 35. Ne4 {[%clk 0:01:20]}  Rc7 {[%clk 0:00:23]} 36. Nd6 {[%clk 0:01:12]}  Rd7 {[%clk 0:00:20]} 37. Nc4 {[%clk 0:01:11]}  Rc7 {[%clk 0:00:18]} 38. Nd2 {[%clk 0:01:09]}  Nf6 {[%clk 0:00:18]} 39. Ra2 {[%clk 0:01:04]}  Rb7 {[%clk 0:00:18]} 40. Nc4 {[%clk 0:01:02]}  Rc7 {[%clk 0:00:18]} 41. Nd6 {[%clk 0:01:01]}  Rd7 {[%clk 0:00:19]} 42. Nb5 {[%clk 0:01:01]}  Rb7 {[%clk 0:00:18]} 43. Nd4 {[%clk 0:01:02]}  Rd7 {[%clk 0:00:18]} 44. g4 {[%clk 0:01:01]}  hxg4+ {[%clk 0:00:18]} 45. hxg4 {[%clk 0:01:02]}  Rb7 {[%clk 0:00:17]} 46. Ra8 {[%clk 0:01:00]}  Rd7 {[%clk 0:00:17]} 47. Nc6 {[%clk 0:00:53]}  Rc7 {[%clk 0:00:16]} 48. Ne5 {[%clk 0:00:51]}  Rb7 {[%clk 0:00:16]} 49. g5 {[%clk 0:00:45]}  Nd7 {[%clk 0:00:17]} 50. Ng4 {[%clk 0:00:43]}  Rc7 {[%clk 0:00:16]} 51. Nh6 {[%clk 0:00:40]}  Nf8 {[%clk 0:00:15]} 52. Kg3 {[%clk 0:00:33]}  Rb7 {[%clk 0:00:16]} 53. Ng4 {[%clk 0:00:33]}  Rc7 {[%clk 0:00:16]} 54. Nf6 {[%clk 0:00:33]}  Rb7 {[%clk 0:00:16]} 55. f3 {[%clk 0:00:31]}  Re7 {[%clk 0:00:16]} 56. e4 {[%clk 0:00:29]}  Rb7 {[%clk 0:00:16]} 57. Ne8+ {[%clk 0:00:28]}  Kg8 {[%clk 0:00:16]} 58. Nd6 {[%clk 0:00:26]}  Rd7 {[%clk 0:00:16]} 59. Ne8 {[%clk 0:00:26]}  Rb7 {[%clk 0:00:16]} 60. Kf4 {[%clk 0:00:26]}  Re7 {[%clk 0:00:16]} 61. Nf6+ {[%clk 0:00:24]}  Kg7 {[%clk 0:00:16]} 62. Ke5 {[%clk 0:00:24]}  Rb7 {[%clk 0:00:16]} 63. Ne8+ {[%clk 0:00:23]}  Kg8 {[%clk 0:00:15]} 64. Nd6 {[%clk 0:00:23]}  Rb5+ {[%clk 0:00:15]} 65. Nxb5 {[%clk 0:00:23]}  Kg7 {[%clk 0:00:15]} 66. Nc7 {[%clk 0:00:23]}  Nd7+ {[%clk 0:00:14]} 67. Kd6 {[%clk 0:00:23]}  Nb6 {[%clk 0:00:13]} 68. Rd8 {[%clk 0:00:21]}  Nc4+ {[%clk 0:00:12]} 69. Ke7 {[%clk 0:00:21]}  Ne3 {[%clk 0:00:13]} 70. Ne8+ {[%clk 0:00:21]}  Kh7 {[%clk 0:00:13]} 71. Nf6+ {[%clk 0:00:22]} 1-0


[Site "https://www.chess.com"]

[Event "Titled Tuesday Blitz June 21 Early 2022"]
[White "Khan, Taffin"]
[Black "Jobava, Baadur"]
[WhiteFideId "19700024"]
[BlackFideId "13601520"]
[WhiteElo "2119"]
[BlackElo "2617"]
[Result "0-1"]
[Round "02"]
[TimeControl "180+1"]
[Date "2022.06.22"]
[WhiteClock "0:00:24"]
[BlackClock "0:02:38"]

1. e4 {[%clk 0:03:00]}  h5 {[%clk 0:03:00]} 2. d4 {[%clk 0:02:57]}  h4 {[%clk 0:03:01]} 3. Nc3 {[%clk 0:02:57]}  d6 {[%clk 0:03:02]} 4. f4 {[%clk 0:02:56]}  g6 {[%clk 0:03:02]} 5. Nf3 {[%clk 0:02:56]}  Bg7 {[%clk 0:03:02]} 6. Bd3 {[%clk 0:02:50]}  Bg4 {[%clk 0:03:02]} 7. Be3 {[%clk 0:02:49]}  h3 {[%clk 0:03:01]} 8. g3 {[%clk 0:02:48]}  Nc6 {[%clk 0:03:02]} 9. Be2 {[%clk 0:02:38]}  Nf6 {[%clk 0:03:00]} 10. Qd2 {[%clk 0:02:12]}  e6 {[%clk 0:02:56]} 11. O-O-O {[%clk 0:02:11]}  Ne7 {[%clk 0:02:53]} 12. Kb1 {[%clk 0:01:50]}  Qd7 {[%clk 0:02:52]} 13. e5 {[%clk 0:01:44]}  Nfd5 {[%clk 0:02:51]} 14. Nxd5 {[%clk 0:01:42]}  Nxd5 {[%clk 0:02:52]} 15. Bf2 {[%clk 0:01:41]}  O-O-O {[%clk 0:02:50]} 16. c4 {[%clk 0:01:32]}  Nb6 {[%clk 0:02:50]} 17. Qc3 {[%clk 0:01:27]}  Qc6 {[%clk 0:02:49]} 18. Rc1 {[%clk 0:01:17]}  Qe4+ {[%clk 0:02:47]} 19. Rc2 {[%clk 0:01:04]}  dxe5 {[%clk 0:02:44]} 20. fxe5 {[%clk 0:00:57]}  Bf5 {[%clk 0:02:42]} 21. Ng5 {[%clk 0:00:44]}  Qxh1+ {[%clk 0:02:41]} 22. Be1 {[%clk 0:00:41]}  Rxd4 {[%clk 0:02:40]} 23. Qxd4 {[%clk 0:00:24]}  Qxe1+ {[%clk 0:02:38]} 24. Qd1 {[%clk 0:00:24]}  Qxd1+ {[%clk 0:02:37]} 25. Bxd1 {[%clk 0:00:24]}  Nxc4 {[%clk 0:02:38]} 0-1


[Site "https://www.chess.com"]

[Event "Titled Tuesday Blitz June 21 Early 2022"]
[White "Kononenko, Dmitry"]
[Black "Sukandar, Irine Kharisma"]
[WhiteFideId "14113538"]
[BlackFideId "7101937"]
[WhiteElo "2145"]
[BlackElo "2293"]
[Result "0-1"]
[Round "02"]
[TimeControl "180+1"]
[Date "2022.06.22"]
[WhiteClock "0:00:58"]
[BlackClock "0:01:02"]

1. e4 {[%clk 0:03:00]}  d5 {[%clk 0:02:58]} 2. exd5 {[%clk 0:03:00]}  Qxd5 {[%clk 0:02:58]} 3. Nc3 {[%clk 0:03:01]}  Qa5 {[%clk 0:02:58]} 4. d4 {[%clk 0:03:01]}  Nf6 {[%clk 0:02:58]} 5. Nf3 {[%clk 0:03:00]}  Bf5 {[%clk 0:02:56]} 6. Bd2 {[%clk 0:02:56]}  c6 {[%clk 0:02:55]} 7. Bc4 {[%clk 0:02:50]}  e6 {[%clk 0:02:54]} 8. Bb3 {[%clk 0:02:51]}  Qc7 {[%clk 0:02:50]} 9. Qe2 {[%clk 0:02:51]}  Be7 {[%clk 0:02:49]} 10. O-O-O {[%clk 0:02:51]}  Nbd7 {[%clk 0:02:48]} 11. Rhe1 {[%clk 0:02:44]}  O-O-O {[%clk 0:02:47]} 12. h3 {[%clk 0:02:42]}  Nd5 {[%clk 0:02:47]} 13. Ne5 {[%clk 0:02:38]}  Nxe5 {[%clk 0:02:46]} 14. dxe5 {[%clk 0:02:39]}  h5 {[%clk 0:02:36]} 15. a3 {[%clk 0:02:34]}  h4 {[%clk 0:02:35]} 16. Kb1 {[%clk 0:02:24]}  Rd7 {[%clk 0:02:31]} 17. f4 {[%clk 0:02:15]}  Rhd8 {[%clk 0:02:29]} 18. Nxd5 {[%clk 0:02:15]}  cxd5 {[%clk 0:02:27]} 19. Be3 {[%clk 0:02:15]}  Kb8 {[%clk 0:02:26]} 20. Ba4 {[%clk 0:02:07]}  Rc8 {[%clk 0:02:26]} 21. Rd2 {[%clk 0:01:55]}  Rdd8 {[%clk 0:02:24]} 22. Bf2 {[%clk 0:01:51]}  Qa5 {[%clk 0:02:23]} 23. Bb3 {[%clk 0:01:49]}  Be4 {[%clk 0:02:12]} 24. Rg1 {[%clk 0:01:47]}  Rc6 {[%clk 0:02:01]} 25. Ka2 {[%clk 0:01:46]}  Rdc8 {[%clk 0:02:00]} 26. c3 {[%clk 0:01:44]}  Rxc3 {[%clk 0:01:55]} 27. Bd4 {[%clk 0:01:39]}  R3c6 {[%clk 0:01:34]} 28. Qe3 {[%clk 0:01:35]}  Ra6 {[%clk 0:01:32]} 29. Bc3 {[%clk 0:01:35]}  Rxc3 {[%clk 0:01:27]} 30. Qxc3 {[%clk 0:01:34]}  Bb4 {[%clk 0:01:27]} 31. Qd4 {[%clk 0:01:20]}  Bxa3 {[%clk 0:01:22]} 32. Ba4 {[%clk 0:01:17]}  Bb4 {[%clk 0:01:20]} 33. b3 {[%clk 0:01:16]}  Bxd2 {[%clk 0:01:15]} 34. f5 {[%clk 0:01:15]}  Bc3 {[%clk 0:01:14]} 35. Qe3 {[%clk 0:01:12]}  Qb4 {[%clk 0:01:12]} 36. Qc1 {[%clk 0:01:00]}  Rxa4+ {[%clk 0:01:09]} 37. bxa4 {[%clk 0:00:59]}  Qxa4+ {[%clk 0:01:03]} 38. Qa3 {[%clk 0:01:00]}  Qc2+ {[%clk 0:01:03]} 39. Qb2 {[%clk 0:00:58]}  Qxb2# {[%clk 0:01:02]} 0-1


[Site "https://www.chess.com"]

[Event "Titled Tuesday Blitz June 21 Early 2022"]
[White "Kozak, Antoni"]
[Black "Vidonyak, Roman"]
[WhiteFideId "21832030"]
[BlackFideId "14100622"]
[WhiteElo "2320"]
[BlackElo "2413"]
[Result "1-0"]
[Round "02"]
[TimeControl "180+1"]
[Date "2022.06.22"]
[WhiteClock "0:02:51"]
[BlackClock "0:02:11"]

1. e4 {[%clk 0:03:00]}  c5 {[%clk 0:02:58]} 2. Nf3 {[%clk 0:03:01]}  d6 {[%clk 0:02:57]} 3. c3 {[%clk 0:03:01]}  Nf6 {[%clk 0:02:55]} 4. Be2 {[%clk 0:03:01]}  Nc6 {[%clk 0:02:56]} 5. d4 {[%clk 0:02:58]}  cxd4 {[%clk 0:02:47]} 6. cxd4 {[%clk 0:02:59]}  Nxe4 {[%clk 0:02:47]} 7. d5 {[%clk 0:02:58]}  Bd7 {[%clk 0:02:28]} 8. dxc6 {[%clk 0:02:58]}  Bxc6 {[%clk 0:02:29]} 9. O-O {[%clk 0:02:54]}  g6 {[%clk 0:02:24]} 10. Nd4 {[%clk 0:02:54]}  Bd7 {[%clk 0:02:21]} 11. Bf3 {[%clk 0:02:53]}  Nc5 {[%clk 0:02:17]} 12. b4 {[%clk 0:02:52]}  Ne6 {[%clk 0:02:13]} 13. Bxb7 {[%clk 0:02:51]}  Rb8 {[%clk 0:02:13]} 14. Nc6 {[%clk 0:02:51]}  Bxc6 {[%clk 0:02:11]} 15. Bxc6+ {[%clk 0:02:51]} 1-0


[Site "https://www.chess.com"]

[Event "Titled Tuesday Blitz June 21 Early 2022"]
[White "Krallis, Christos"]
[Black "Gormally, Daniel W"]
[WhiteFideId "4298896"]
[BlackFideId "406465"]
[WhiteElo "2234"]
[BlackElo "2543"]
[Result "0-1"]
[Round "02"]
[TimeControl "180+1"]
[Date "2022.06.22"]
[WhiteClock "0:00:03"]
[BlackClock "0:00:54"]

1. d4 {[%clk 0:03:00]}  Nf6 {[%clk 0:02:59]} 2. c4 {[%clk 0:03:00]}  g6 {[%clk 0:02:59]} 3. Nc3 {[%clk 0:02:58]}  d5 {[%clk 0:03:00]} 4. Qa4+ {[%clk 0:02:55]}  Bd7 {[%clk 0:02:53]} 5. Qd1 {[%clk 0:02:55]}  dxc4 {[%clk 0:02:50]} 6. e4 {[%clk 0:02:54]}  c5 {[%clk 0:02:43]} 7. d5 {[%clk 0:02:47]}  Qc7 {[%clk 0:02:24]} 8. Nf3 {[%clk 0:02:40]}  Bg7 {[%clk 0:02:24]} 9. Bxc4 {[%clk 0:02:36]}  O-O {[%clk 0:02:24]} 10. h3 {[%clk 0:02:23]}  b5 {[%clk 0:02:22]} 11. Bd3 {[%clk 0:02:09]}  c4 {[%clk 0:02:17]} 12. Bc2 {[%clk 0:02:09]}  b4 {[%clk 0:02:02]} 13. Ne2 {[%clk 0:02:09]}  e6 {[%clk 0:01:47]} 14. d6 {[%clk 0:02:05]}  Qb7 {[%clk 0:01:47]} 15. e5 {[%clk 0:02:02]}  Nd5 {[%clk 0:01:47]} 16. Nf4 {[%clk 0:01:59]}  Nxf4 {[%clk 0:01:44]} 17. Bxf4 {[%clk 0:01:59]}  Bc6 {[%clk 0:01:45]} 18. h4 {[%clk 0:01:39]}  Nd7 {[%clk 0:01:44]} 19. Qe2 {[%clk 0:01:33]}  Rac8 {[%clk 0:01:34]} 20. Ng5 {[%clk 0:01:27]}  b3 {[%clk 0:01:30]} 21. axb3 {[%clk 0:01:11]}  cxb3 {[%clk 0:01:30]} 22. Bd3 {[%clk 0:01:00]}  Bxg2 {[%clk 0:01:26]} 23. Rg1 {[%clk 0:01:00]}  Bd5 {[%clk 0:01:21]} 24. h5 {[%clk 0:00:58]}  Qb4+ {[%clk 0:01:21]} 25. Bd2 {[%clk 0:00:58]}  Qd4 {[%clk 0:01:22]} 26. Nxh7 {[%clk 0:00:40]}  Nxe5 {[%clk 0:01:19]} 27. Nxf8 {[%clk 0:00:20]}  Nxd3+ {[%clk 0:01:19]} 28. Kf1 {[%clk 0:00:20]}  Rxf8 {[%clk 0:01:14]} 29. Bc3 {[%clk 0:00:20]}  Qe4 {[%clk 0:01:03]} 30. Qxe4 {[%clk 0:00:19]}  Bxe4 {[%clk 0:01:04]} 31. Bxg7 {[%clk 0:00:18]}  Kxg7 {[%clk 0:01:04]} 32. hxg6 {[%clk 0:00:18]}  Bxg6 {[%clk 0:01:02]} 33. Rxa7 {[%clk 0:00:19]}  Rd8 {[%clk 0:01:03]} 34. d7 {[%clk 0:00:17]}  Nxb2 {[%clk 0:01:00]} 35. Rb7 {[%clk 0:00:17]}  Nc4 {[%clk 0:00:59]} 36. Ke2 {[%clk 0:00:16]}  b2 {[%clk 0:00:59]} 37. f4 {[%clk 0:00:14]}  Kf6 {[%clk 0:00:59]} 38. f5 {[%clk 0:00:10]}  Bxf5 {[%clk 0:00:58]} 39. Rf1 {[%clk 0:00:10]}  Ke7 {[%clk 0:00:54]} 40. Rxf5 {[%clk 0:00:03]}  exf5 {[%clk 0:00:54]} 41. Rb4 {[%clk 0:00:03]} 0-1


[Site "https://www.chess.com"]

[Event "Titled Tuesday Blitz June 21 Early 2022"]
[White "Kretchetov, Alexandre"]
[Black "Thiel, Thomas"]
[WhiteFideId "4124588"]
[BlackFideId "4615964"]
[WhiteElo "2499"]
[BlackElo "2214"]
[Result "0-1"]
[Round "02"]
[TimeControl "180+1"]
[Date "2022.06.22"]
[WhiteClock "0:00:20"]
[BlackClock "0:01:00"]

1. d4 {[%clk 0:02:57]}  Nf6 {[%clk 0:02:57]} 2. Bf4 {[%clk 0:02:57]}  d5 {[%clk 0:02:55]} 3. e3 {[%clk 0:02:57]}  c5 {[%clk 0:02:55]} 4. c3 {[%clk 0:02:57]}  Nc6 {[%clk 0:02:53]} 5. Nd2 {[%clk 0:02:56]}  Qb6 {[%clk 0:02:51]} 6. Qb3 {[%clk 0:02:56]}  c4 {[%clk 0:02:47]} 7. Qc2 {[%clk 0:02:56]}  h6 {[%clk 0:02:46]} 8. h3 {[%clk 0:02:56]}  g6 {[%clk 0:02:33]} 9. b3 {[%clk 0:02:54]}  Bf5 {[%clk 0:02:31]} 10. Qb2 {[%clk 0:02:54]}  cxb3 {[%clk 0:02:30]} 11. axb3 {[%clk 0:02:53]}  Bg7 {[%clk 0:02:26]} 12. Ngf3 {[%clk 0:02:53]}  O-O {[%clk 0:02:25]} 13. Be2 {[%clk 0:02:51]}  e6 {[%clk 0:02:24]} 14. O-O {[%clk 0:02:41]}  Rfc8 {[%clk 0:02:20]} 15. Bh2 {[%clk 0:02:33]}  h5 {[%clk 0:02:18]} 16. Nh4 {[%clk 0:02:25]}  Ne4 {[%clk 0:02:09]} 17. Nxf5 {[%clk 0:02:23]}  exf5 {[%clk 0:02:10]} 18. Nxe4 {[%clk 0:02:19]}  fxe4 {[%clk 0:02:11]} 19. Rfb1 {[%clk 0:02:12]}  a5 {[%clk 0:02:08]} 20. Ra4 {[%clk 0:02:01]}  Qd8 {[%clk 0:02:00]} 21. Rba1 {[%clk 0:01:57]}  b6 {[%clk 0:01:58]} 22. Bf1 {[%clk 0:01:37]}  Bf8 {[%clk 0:01:57]} 23. c4 {[%clk 0:01:24]}  Nb4 {[%clk 0:01:54]} 24. Qe2 {[%clk 0:01:04]}  Nd3 {[%clk 0:01:44]} 25. f3 {[%clk 0:00:53]}  Bd6 {[%clk 0:01:28]} 26. Bxd6 {[%clk 0:00:52]}  Qxd6 {[%clk 0:01:25]} 27. fxe4 {[%clk 0:00:45]}  dxe4 {[%clk 0:01:24]} 28. Qd2 {[%clk 0:00:45]}  Nb4 {[%clk 0:01:16]} 29. Qf2 {[%clk 0:00:41]}  Kg7 {[%clk 0:01:09]} 30. g3 {[%clk 0:00:37]}  Qf6 {[%clk 0:01:08]} 31. Qf4 {[%clk 0:00:37]}  Qxf4 {[%clk 0:01:07]} 32. gxf4 {[%clk 0:00:37]}  Nc2 {[%clk 0:01:06]} 33. Rd1 {[%clk 0:00:19]}  Nxe3 {[%clk 0:01:03]} 34. Be2 {[%clk 0:00:20]}  Nxd1 {[%clk 0:01:03]} 35. Bxd1 {[%clk 0:00:20]}  b5 {[%clk 0:01:00]} 0-1


[Site "https://www.chess.com"]